bitfinex/quotes_ETHUSD_20250603
["timestamp","ask_amount","ask_price","bid_price","bid_amount"]
[1748945834259,7.69392578,2615.8,2615.5,8.0]
[1748945834570,3.871,2615.8,2615.7,8.0]
[1748945836445,7.69392224,2615.8,2615.7,8.0]
[1748945836779,5.13499641,2615.8,2615.5,8.0]
[1748945837074,7.69396989,2615.8,2615.5,8.0]
[1748945837384,3.871,2615.8,2615.5,8.0]
[1748945837748,4.9460532,2616.0,2615.5,8.0]
[1748945837973,7.69385645,2615.9,2615.7,8.0]
[1748945839181,3.82292224,2615.8,2615.7,8.0]
[1748945840967,3.82292224,2615.8,2615.5,8.0]
[1748945841149,3.872,2615.7,2615.5,8.0]
[1748945841345,7.69510517,2615.7,2615.5,8.0]
[1748945841737,3.82321455,2615.6,2615.5,8.0]
[1748945842072,4.97051455,2615.6,2615.5,8.0]
[1748945844070,1.1473,2615.6,2615.5,8.0]
[1748945845568,7.69511708,2615.7,2615.5,8.0]
[1748945845971,3.872,2615.7,2615.5,8.0]
[1748945846793,3.82321455,2615.6,2615.5,8.0]
[1748945847485,7.6951136,2615.7,2615.5,8.0]
[1748945848859,3.82321455,2615.6,2615.5,8.0]
[1748945849261,3.872,2615.7,2615.5,8.0]
[1748945849262,7.69513383,2615.7,2615.5,8.0]
[1748945849492,5.13284058,2615.7,2615.2,8.37236317]
[1748945849691,3.82365311,2615.3,2615.2,0.37236317]
[1748945849909,3.82383706,2615.2,2614.8,8.0]
[1748945850109,3.871,2615.1,2614.8,8.0]
[1748945850620,3.871,2615.1,2614.4,12.119]
[1748945850621,1.07,2615.0,2614.4,3.15384381]
[1748945850821,1.07,2615.0,2614.5,8.0]
[1748945850822,7.69523802,2614.9,2614.5,8.0]
[1748945851123,3.82389657,2615.2,2614.8,3.15384381]
[1748945851426,7.69495839,2615.1,2614.8,3.15384381]
[1748945851621,7.69495839,2615.1,2614.9,8.0]
[1748945852922,3.871,2615.1,2614.9,8.0]
[1748945854206,3.871,2615.1,2614.9,7.95]
[1748945854411,1.1642,2615.2,2615.0,3.15384381]
[1748945854718,3.872,2615.2,2615.0,6.97792997]
[1748945855104,3.872,2615.2,2615.1,3.82394554]
[1748945855306,3.872,2615.3,2615.2,3.82369625]
[1748945855513,3.872,2615.3,2615.2,6.97754006]
[1748945856224,3.872,2615.3,2615.2,14.97754006]
[1748945857383,3.872,2615.3,2615.2,14.97764313]
[1748945859021,1.0819,2615.6,2615.2,14.97764313]
[1748945859230,3.872,2615.5,2615.3,8.0]
[1748945859728,4.94218896,2615.9,2615.5,11.82332913]
[1748945859914,4.3662189,2615.8,2615.5,8.0]
[1748945860932,8.18924487,2615.8,2615.5,8.0]
[1748945861903,1.1193,2615.9,2615.5,11.82334631]
[1748945862104,3.872,2615.8,2615.5,11.82334631]
[1748945862329,3.872,2615.8,2615.5,8.0]
[1748945863238,3.82315356,2615.7,2615.0,0.0913]
[1748945863395,1.1193,2615.9,2615.0,0.0913]
[1748945863396,3.872,2615.6,2615.3,8.0]
[1748945864033,3.82308701,2615.7,2615.3,11.82357886]
[1748945864206,3.872,2615.6,2615.3,3.82357886]
[1748945864408,3.872,2615.6,2615.4,3.15384381]
[1748945866611,1.1193,2615.9,2615.4,3.15384381]
[1748945866945,3.872,2615.8,2615.6,3.15384381]
[1748945867430,7.69492608,2615.8,2615.6,3.15384381]
[1748945867637,3.872,2615.8,2615.6,3.15384381]
[1748945868031,3.82277831,2615.9,2615.6,3.15384381]
[1748945868232,7.69371108,2616.0,2615.6,3.15384381]
[1748945868717,3.82278842,2615.9,2615.6,3.15384381]
[1748945869625,3.82300594,2615.8,2615.6,3.15384381]
[1748945869811,3.82313773,2615.7,2615.4,3.15384381]
[1748945870205,3.871,2615.7,2615.4,3.15384381]
[1748945878561,3.871,2615.7,2615.4,6.97725838]
[1748945880371,3.871,2615.7,2615.4,3.15384381]
[1748945880672,7.69407274,2615.7,2615.4,3.15384381]
[1748945881238,7.69407274,2615.7,2615.3,10.0]
[1748945881239,1.128,2615.6,2615.3,10.0]
[1748945881568,1.128,2615.3,2614.9,4.21295432]
[1748945881767,4.999,2615.3,2615.0,10.0]
[1748945881926,4.999,2615.3,2615.0,3.15384381]
[1748945884272,4.999,2615.3,2615.0,6.97793146]
[1748945884780,4.999,2615.3,2615.0,3.15384381]
[1748945885074,4.999,2615.3,2615.0,6.97791755]
[1748945885675,8.82272452,2615.3,2615.0,3.15384381]
[1748945886274,4.999,2615.3,2615.0,3.15384381]
[1748945886577,8.82265318,2615.3,2615.0,3.15384381]
[1748945886778,4.999,2615.3,2615.0,3.15384381]
[1748945886939,4.999,2615.3,2615.0,6.97790146]
[1748945887551,4.999,2615.3,2615.0,3.15384381]
[1748945887780,8.82268166,2615.3,2615.0,3.15384381]
[1748945888489,4.999,2615.3,2615.0,3.15384381]
[1748945888688,8.82266469,2615.3,2615.0,3.15384381]
[1748945889186,1.0446,2615.0,2614.9,0.37566502]
[1748945889386,4.9156,2615.0,2614.9,3.52950883]
[1748945889548,4.9156,2615.0,2614.9,3.15384381]
[1748945890247,8.73977661,2615.0,2614.7,3.15384381]
[1748945890446,4.9156,2615.0,2614.7,3.15384381]
[1748945891694,4.9156,2615.0,2614.7,6.97837334]
[1748945891897,3.871,2615.0,2614.9,3.15384381]
[1748945892693,3.871,2615.0,2614.9,3.52649326]
[1748945894792,3.871,2615.0,2614.9,3.90859326]
[1748945894994,3.871,2615.0,2614.9,3.52649326]
[1748945895156,3.82385605,2615.2,2614.9,3.52649326]
[1748945895360,3.872,2615.1,2614.9,3.52649326]
[1748945896100,7.69596923,2615.1,2614.9,3.52649326]
[1748945897573,3.872,2615.1,2614.9,3.52649326]
[1748945897983,7.69600685,2615.1,2614.9,3.52649326]
[1748945899079,3.872,2615.1,2614.9,3.52649326]
[1748945900103,7.69595177,2615.1,2614.9,3.52649326]
[1748945900901,7.69601618,2615.1,2614.9,3.52649326]
[1748945901064,9.03931751,2615.1,2614.9,3.52649326]
[1748945902365,7.69601618,2615.1,2614.9,3.52649326]
[1748945906611,3.82409177,2615.0,2614.9,0.37264945]
[1748945907013,3.82409177,2615.0,2614.8,3.15384381]
[1748945907814,7.69599471,2615.1,2614.8,3.15384381]
[1748945907997,3.872,2615.1,2614.8,3.15384381]
[1748945909507,7.69594717,2615.1,2614.8,3.15384381]
[1748945910673,7.69594717,2615.1,2614.8,3.53558676]
[1748945911713,3.872,2615.1,2614.8,3.53558676]
[1748945911891,3.872,2615.0,2614.8,3.53558676]
[1748945913318,3.872,2615.0,2614.8,7.35994832]
[1748945914023,3.82385799,2615.2,2614.8,7.35994832]
[1748945914185,3.871,2615.1,2615.0,3.15384381]
[1748945920018,7.69494554,2615.1,2615.0,3.15384381]
[1748945921734,3.871,2615.1,2615.0,3.15384381]
[1748945922392,1.0554,2615.6,2615.0,3.15384381]
[1748945922734,3.82336073,2615.5,2615.4,3.15384381]
[1748945923031,7.69436073,2615.5,2615.4,3.15384381]
[1748945923183,8.95165686,2615.5,2615.4,3.15384381]
[1748945923899,3.82351535,2615.4,2615.2,3.15384381]
[1748945924296,5.12829613,2615.5,2615.0,3.15384381]
[1748945924497,3.82365311,2615.3,2614.8,3.54063225]
[1748945924700,3.82394792,2615.1,2614.8,3.54063225]
[1748945924906,7.69488303,2615.2,2614.8,3.54063225]
[1748945925321,7.69480512,2615.2,2614.8,3.54063225]
[1748945925504,3.82402625,2615.1,2614.8,3.54063225]
[1748945926108,7.69487974,2615.2,2614.8,3.54063225]
[1748945926322,8.95639941,2615.2,2614.8,3.54063225]
[1748945926914,3.82401823,2615.1,2614.8,0.38678844]
[1748945927121,5.13251967,2615.2,2614.8,0.38678844]
[1748945927334,8.95639321,2615.2,2614.7,6.97834888]
[1748945927516,7.69487354,2615.2,2614.7,6.97834888]
[1748945928038,1.0966,2615.4,2614.9,3.15384381]
[1748945928238,3.823474,2615.5,2615.3,3.15384381]
[1748945928436,7.694474,2615.5,2615.3,3.15384381]
[1748945928745,8.95120478,2615.5,2615.3,3.15384381]
[1748945930231,3.82350692,2615.4,2615.3,3.15384381]
[1748945932442,3.82366637,2615.3,2615.1,3.15384381]
[1748945932606,3.82379932,2615.2,2615.1,3.15384381]
[1748945932943,7.69487146,2615.2,2614.9,3.15384381]
[1748945940304,3.82395502,2615.1,2614.9,3.15384381]
[1748945940436,3.82409177,2615.0,2614.9,8.0]
[1748945941436,7.69409177,2615.0,2614.9,8.0]
[1748945942179,3.82409177,2615.0,2614.9,11.15384381]
[1748945942482,3.87,2615.0,2614.9,11.15384381]
[1748945943851,7.69409177,2615.0,2614.9,3.15384381]
[1748945944180,3.87,2615.1,2615.0,3.82403117]
[1748945944478,3.87,2615.1,2615.0,16.97787498]
[1748945945676,3.82331161,2615.6,2615.0,16.97787498]
[1748945945982,8.18344745,2615.5,2615.3,3.15384381]
[1748945947390,3.82350692,2615.4,2615.3,3.15384381]
[1748945947785,3.82350692,2615.4,2615.1,3.15384381]
[1748945947984,3.87,2615.3,2615.1,3.15384381]
[1748945949797,3.82358088,2615.4,2615.1,3.15384381]
[1748945949996,3.87,2615.3,2615.2,3.82379932]
[1748945950182,1.0767,2615.7,2615.2,3.82379932]
[1748945950183,4.89984228,2615.7,2615.2,3.82379932]
[1748945950501,3.87,2615.6,2615.2,3.82373701]
[1748945950675,7.69322433,2615.6,2615.2,3.82373701]
[1748945950874,3.87,2615.6,2615.2,3.82373701]
[1748945951184,7.69323181,2615.6,2615.4,3.15384381]
[1748945952122,3.82323181,2615.6,2615.4,3.15384381]
[1748945952421,3.82323181,2615.6,2615.2,3.82373701]
[1748945952422,3.82366097,2615.3,2615.2,11.15384381]
[1748945953314,3.82404413,2615.1,2614.7,0.4767848]
[1748945953511,3.82431864,2614.9,2614.7,0.3842848]
[1748945953801,3.87,2614.8,2614.7,11.15384381]
[1748945953999,3.87,2614.8,2614.7,14.97837434]
[1748945955598,3.87,2614.8,2614.7,6.97837434]
[1748945955900,3.87,2614.8,2614.7,3.15384381]
[1748945956317,3.87,2614.8,2614.7,6.97837434]
[1748945956697,3.87,2614.8,2614.7,3.15384381]
[1748945957015,3.87,2614.8,2614.7,6.97837434]
[1748945957673,3.87,2614.8,2614.7,14.97830884]
[1748945957874,1.1272,2615.3,2615.0,3.82402575]
[1748945958069,3.82347703,2615.5,2615.1,6.97775018]
[1748945958070,1.1171,2615.5,2615.1,6.97775018]
[1748945958317,3.87,2615.4,2615.1,6.97775018]
[1748945958628,1.1171,2615.5,2615.3,3.15384381]
[1748945958824,3.87,2615.4,2615.3,3.15384381]
[1748945959218,4.85314622,2615.7,2615.3,3.15384381]
[1748945959406,4.7376105,2615.6,2615.3,3.15384381]
[1748945959891,8.56085391,2615.6,2615.3,3.15384381]
[1748945960091,3.82344428,2615.5,2615.3,3.15384381]
[1748945960336,3.82344428,2615.5,2615.1,3.15384381]
[1748945961343,3.82361171,2615.4,2615.1,3.15384381]
[1748945963400,3.82344507,2615.5,2615.1,3.15384381]
[1748945963806,3.82352967,2615.4,2615.1,3.15384381]
[1748945968129,3.8236885,2615.3,2615.1,3.15384381]
[1748945968335,1.0622,2615.2,2614.8,3.15384381]
[1748945968520,4.88614078,2615.2,2614.8,3.15384381]
[1748945969035,4.88614078,2615.2,2614.9,8.0]
[1748945969734,3.8239732,2615.1,2614.9,8.0]
[1748945970195,3.82409177,2615.0,2614.8,3.15384381]
[1748945971191,3.82404522,2615.1,2614.8,3.15384381]
[1748945972010,3.869,2615.0,2614.8,3.15384381]
[1748945978972,3.869,2615.0,2614.9,3.15384381]
[1748945985366,4.88606843,2615.2,2614.9,3.15384381]
[1748945985524,3.869,2615.1,2614.9,3.15384381]
[1748945986545,7.69294969,2615.1,2614.9,3.15384381]
[1748945986741,3.82409177,2615.0,2614.9,3.15384381]
[1748945987269,7.69299475,2615.1,2614.9,3.15384381]
[1748945991087,1.0622,2615.2,2614.9,3.15384381]
[1748945991396,1.0393,2616.1,2615.5,3.82335883]
[1748945991686,3.82280619,2615.9,2615.8,3.15384381]
[1748945991850,8.94717402,2615.9,2615.8,3.15384381]
[1748945993389,3.82301674,2615.8,2615.6,3.15384381]
[1748945994965,3.82306839,2615.7,2615.6,3.15384381]
[1748945995881,3.82300562,2615.8,2615.6,3.15384381]
[1748945996092,5.10002647,2615.8,2615.6,3.15384381]
[1748945996491,1.27702085,2615.8,2615.6,3.15384381]
[1748945996797,5.10001507,2615.8,2615.6,3.15384381]
[1748945997187,3.82306839,2615.7,2615.6,3.15384381]
[1748945997694,3.82344734,2615.5,2615.0,14.97784306]
[1748945997900,3.868,2615.5,2615.4,3.15384381]
[1748946001601,3.82362304,2615.4,2615.2,3.15384381]
[1748946002176,3.82362304,2615.4,2615.0,3.15384381]
[1748946002400,3.82362304,2615.4,2615.0,11.15384381]
[1748946002597,3.823588,2615.4,2615.0,11.15384381]
[1748946002787,4.91760436,2615.3,2615.0,11.15384381]
[1748946002968,3.868,2615.2,2614.8,3.15384381]
[1748946003170,7.69186229,2615.2,2614.8,3.15384381]
[1748946004012,3.8239511,2615.1,2614.8,3.15384381]
[1748946004213,7.6918507,2615.2,2614.8,3.15384381]
[1748946004379,7.69187347,2615.2,2614.8,3.15384381]
[1748946004579,3.8239587,2615.1,2614.8,3.15384381]
[1748946004778,7.6918391,2615.2,2614.8,6.97821531]
[1748946005577,7.6918391,2615.2,2614.8,3.15384381]
[1748946005797,3.868,2615.2,2614.8,6.97822649]
[1748946006411,3.868,2615.2,2615.0,3.15384381]
[1748946007319,7.69181636,2615.2,2615.0,3.15384381]
[1748946009416,3.82394554,2615.1,2615.0,8.0]
[1748946009821,4.86384554,2615.1,2615.0,8.0]
[1748946010006,4.86417022,2614.9,2614.1,0.02]
[1748946010208,3.8248063,2614.6,2614.1,11.84540543]
[1748946010525,3.868,2614.5,2614.1,11.84540543]
[1748946011311,3.868,2614.5,2614.1,12.046207]
[1748946011507,3.868,2614.5,2614.3,8.0]
[1748946011718,7.69287304,2614.5,2614.3,8.0]
[1748946011922,3.8249694,2614.4,2614.1,8.22080157]
[1748946012202,3.869,2614.3,2614.1,8.22080157]
[1748946012413,3.869,2614.3,2614.1,0.02]
[1748946012615,3.869,2614.3,2614.1,0.21898113]
[1748946012817,3.82526203,2614.2,2614.1,0.02]
[1748946013427,7.69417851,2614.3,2614.1,0.02]
[1748946013742,3.82526203,2614.2,2614.1,0.02]
[1748946014250,7.69417838,2614.3,2614.1,0.02]
[1748946014543,3.82526203,2614.2,2614.1,0.02]
[1748946014740,8.95236858,2614.3,2614.1,0.02]
[1748946015748,5.12717054,2614.3,2614.1,0.02]
[1748946016309,3.82476313,2614.6,2614.3,8.0]
[1748946016532,4.95587924,2614.7,2614.3,8.0]
[1748946016840,3.869,2614.6,2614.3,8.0]
[1748946017057,7.69385084,2614.5,2614.3,8.0]
[1748946017207,7.69390393,2614.5,2614.3,8.0]
[1748946017603,7.69390393,2614.5,2614.2,8.0]
[1748946017856,3.82507128,2614.4,2614.1,0.02]
[1748946018032,7.6941157,2614.3,2614.1,0.02]
[1748946018344,8.8504157,2614.3,2614.1,0.02]
[1748946018698,3.82526203,2614.2,2614.1,0.02]
[1748946019304,5.0253,2614.3,2614.1,0.02]
[1748946019503,5.82166005,2614.3,2614.1,0.02]
[1748946020019,9.64679459,2614.3,2614.1,0.02]
[1748946021144,9.64680932,2614.3,2614.1,0.02]
[1748946021333,3.82526203,2614.2,2614.1,0.02]
[1748946021864,9.6468436,2614.3,2614.1,0.02]
[1748946022149,3.82526203,2614.2,2614.1,0.02]
[1748946023543,9.64680942,2614.3,2614.1,0.02]
[1748946023726,3.82526203,2614.2,2614.1,0.02]
[1748946024455,5.82166005,2614.3,2614.1,0.02]
[1748946024742,5.0253,2614.3,2613.8,0.01920258]
[1748946024948,5.0253,2614.3,2613.9,3.82568807]
[1748946025860,5.0253,2614.3,2614.0,3.8255298]
[1748946026041,3.869,2614.3,2614.0,6.97937361]
[1748946026443,3.869,2614.2,2614.0,6.97937361]
[1748946027914,3.869,2614.2,2614.0,3.15384381]
[1748946028320,3.869,2614.2,2614.0,6.97938429]
[1748946031746,3.869,2614.2,2614.0,3.15384381]
[1748946033949,7.69427594,2614.2,2613.9,0.38371879]
[1748946034138,7.69427594,2614.2,2613.8,6.97960208]
[1748946034665,3.869,2614.2,2613.8,6.97960208]
[1748946036871,3.869,2614.2,2613.8,7.36029207]
[1748946037364,3.869,2614.2,2613.9,3.82559667]
[1748946038473,3.869,2614.2,2614.0,3.8255508]
[1748946039067,3.869,2614.2,2613.9,3.82557965]
[1748946039268,3.869,2614.2,2613.8,3.5345338]
[1748946039470,3.869,2614.2,2613.9,3.82564437]
[1748946039773,3.869,2614.2,2613.9,13.82564437]
[1748946040071,3.869,2614.2,2613.9,10.0]
[1748946040271,3.82540997,2614.1,2613.8,3.5345338]
[1748946040581,7.69432905,2614.2,2613.8,3.5345338]
[1748946040731,7.69434474,2614.2,2613.8,3.5345338]
[1748946040931,7.69434474,2614.2,2613.8,0.38068999]
[1748946040932,8.76150987,2614.2,2613.8,0.38068999]
[1748946041134,3.82546725,2614.1,2613.7,4.51849014]
[1748946041380,8.76153855,2614.2,2613.8,8.0]
[1748946042580,8.76153855,2614.2,2613.8,11.15384381]
[1748946043057,3.82543373,2614.1,2613.8,11.15384381]
[1748946043247,3.82543373,2614.1,2613.8,11.5369762]
[1748946045173,8.76154404,2614.2,2613.8,11.5369762]
[1748946048085,3.82546661,2614.1,2613.8,11.5369762]
[1748946048840,4.9362,2614.2,2613.8,11.5369762]
[1748946048841,8.7615075,2614.2,2613.8,11.5369762]
[1748946049043,8.7615075,2614.2,2613.8,15.36281694]
[1748946050778,4.9362,2614.2,2613.8,11.5369762]
[1748946051582,8.7615385,2614.2,2613.8,11.5369762]
[1748946052783,3.869,2614.1,2613.8,15.36281277]
[1748946054182,3.869,2614.1,2613.8,11.5369762]
[1748946055001,3.869,2614.1,2613.8,15.36280486]
[1748946056084,3.869,2614.1,2613.9,3.82568519]
[1748946056955,3.869,2614.1,2613.8,15.3628229]
[1748946057157,4.97515757,2614.4,2613.8,15.3628229]
[1748946057158,1.1501,2614.4,2614.0,6.97939851]
[1748946057353,3.869,2614.3,2614.0,3.15384381]
[1748946057558,3.869,2614.2,2614.0,13.15384381]
[1748946058705,3.869,2614.4,2614.2,3.82519308]
[1748946058859,3.869,2614.4,2614.3,3.15384381]
[1748946059287,1.0965,2614.7,2614.3,3.15384381]
[1748946059610,3.869,2614.6,2614.3,3.15384381]
[1748946059805,3.82448921,2614.8,2614.3,6.97889099]
[1748946059964,3.869,2614.7,2614.3,3.15384381]
[1748946060163,7.69359828,2614.7,2614.3,6.97894895]
[1748946060504,3.869,2614.7,2614.4,10.0]
[1748946060706,3.869,2614.6,2614.3,6.97894375]
[1748946060905,3.869,2614.6,2614.4,3.82495093]
[1748946061204,4.92082235,2614.9,2614.5,3.15384381]
[1748946061423,3.869,2614.8,2614.7,10.0]
[1748946061628,3.869,2614.8,2614.5,6.97860769]
[1748946061629,3.869,2614.8,2614.5,3.15384381]
[1748946061811,3.82414326,2615.0,2614.5,3.15384381]
[1748946062002,3.869,2614.9,2614.5,3.15384381]
[1748946062328,3.82441131,2614.8,2614.6,10.0]
[1748946062682,3.82441131,2614.8,2614.5,3.15384381]
[1748946062920,3.82454342,2614.7,2614.5,3.15384381]
[1748946063101,3.82454342,2614.7,2614.4,0.1956]
[1748946063828,3.82446994,2614.8,2614.4,0.1956]
[1748946064411,3.82474126,2614.6,2614.2,8.1956]
[1748946064592,1.29271886,2614.8,2614.2,12.02078565]
[1748946064593,4.9586953,2614.7,2614.2,12.02078565]
[1748946065121,3.869,2614.6,2614.2,12.02078565]
[1748946065326,3.869,2614.6,2614.3,3.82510881]
[1748946067237,3.868,2614.6,2614.4,3.82488056]
[1748946069511,3.868,2614.6,2614.2,8.1956]
[1748946069817,7.69275698,2614.6,2614.2,0.1956]
[1748946070194,7.69275698,2614.6,2614.2,4.02085897]
[1748946070434,3.868,2614.6,2614.2,4.02085897]
[1748946071045,7.6926801,2614.6,2614.2,4.02085897]
[1748946071331,3.868,2614.6,2614.2,4.02085897]
[1748946072037,3.868,2614.6,2614.3,3.82511516]
[1748946072199,7.69268267,2614.6,2614.2,4.02078681]
[1748946072399,3.868,2614.6,2614.2,4.02078681]
[1748946074451,3.868,2614.6,2614.3,3.82511557]
[1748946075233,3.868,2614.6,2614.2,4.02079689]
[1748946075446,3.868,2614.6,2614.2,0.1956]
[1748946075596,3.868,2614.6,2614.3,3.8251132]
[1748946080309,3.868,2614.6,2614.3,8.0]
[1748946081912,3.868,2614.6,2614.3,11.82509958]
[1748946082112,3.868,2614.6,2614.3,8.0]
[1748946082411,3.868,2614.6,2614.3,11.82510585]
[1748946082610,3.868,2614.6,2614.4,3.15384381]
[1748946083723,3.82458714,2614.7,2614.4,3.15384381]
[1748946083934,0.21046505,2654.5,2614.6,3.15384381]
[1748946083935,2.31772773,2615.2,2614.6,3.15384381]
[1748946084257,7.6920254,2615.1,2614.8,3.15384381]
[1748946085263,3.82414896,2615.0,2614.8,3.15384381]
[1748946085644,1.1118,2614.9,2614.3,3.82509745]
[1748946085821,7.69251057,2614.8,2614.4,3.15384381]
[1748946086030,3.82467681,2614.6,2614.1,16.97918011]
[1748946086252,8.95530147,2614.8,2614.3,3.15384381]
[1748946086458,3.82461094,2614.7,2614.3,3.15384381]
[1748946086962,3.82445722,2614.8,2614.3,3.32444381]
[1748946087157,3.868,2614.7,2614.5,3.15384381]
[1748946087341,4.93609717,2614.9,2614.5,6.9786643]
[1748946087676,3.868,2614.8,2614.5,6.9786643]
[1748946088045,3.868,2614.9,2614.7,6.97830637]
[1748946088254,3.868,2614.9,2614.7,3.15384381]
[1748946088575,7.69224,2614.9,2614.7,3.15384381]
[1748946088872,3.868,2614.9,2614.7,3.15384381]
[1748946089073,7.69223934,2614.9,2614.7,3.15384381]
[1748946089381,7.69223934,2614.9,2614.6,0.1706]
[1748946089382,3.82449163,2614.8,2614.2,0.1706]
[1748946089589,3.82446841,2614.8,2614.4,3.15384381]
[1748946089937,3.82446841,2614.8,2614.5,10.0]
[1748946090275,7.69227572,2614.9,2614.6,3.15384381]
[1748946090968,1.0784,2615.1,2614.6,6.97846178]
[1748946091180,7.69118521,2615.0,2614.8,3.15384381]
[1748946091960,1.0784,2615.1,2614.8,3.15384381]
[1748946092153,3.867,2615.1,2614.8,3.15384381]
[1748946092465,3.867,2615.1,2614.8,6.97820793]
[1748946093374,3.867,2615.1,2614.8,3.15384381]
[1748946093684,7.69096706,2615.1,2614.8,3.15384381]
[1748946097389,7.69100375,2615.1,2614.8,3.15384381]
[1748946098065,7.69100375,2615.1,2614.9,8.0]
[1748946100195,3.867,2615.1,2614.9,8.0]
[1748946100571,7.69097904,2615.1,2614.9,8.0]
[1748946100770,7.69097904,2615.1,2614.8,3.15384381]
[1748946101262,3.82410174,2615.0,2614.8,3.15384381]
[1748946101475,3.867,2615.1,2614.6,6.97844105]
[1748946102209,7.69101308,2615.1,2614.6,6.97844105]
[1748946102420,7.69101308,2615.1,2614.7,10.0]
[1748946102621,7.69101308,2615.1,2614.7,13.82451963]
[1748946103108,7.69101308,2615.1,2614.7,10.0]
[1748946103311,7.69101308,2615.1,2614.7,13.82452195]
[1748946104425,3.82401308,2615.1,2614.7,10.0]
[1748946104589,3.867,2615.0,2614.7,13.82446112]
[1748946105717,3.867,2615.0,2614.7,3.82446112]
[1748946106529,3.867,2615.0,2614.7,13.82446112]
[1748946113762,1.087,2615.3,2614.8,3.82424976]
[1748946113975,3.866,2615.2,2614.8,6.97817311]
[1748946114258,3.82395297,2615.1,2614.8,3.15384381]
[1748946114463,3.866,2615.0,2614.8,3.15384381]
[1748946115682,3.866,2615.0,2614.7,3.15384381]
[1748946115851,3.866,2615.0,2614.7,6.97830375]
[1748946117575,3.866,2615.0,2614.7,13.15384381]
[1748946117739,3.866,2615.0,2614.7,6.97836378]
[1748946118370,3.866,2615.0,2614.7,13.15384381]
[1748946118760,3.82394995,2615.1,2614.7,13.15384381]
[1748946118930,3.866,2614.9,2614.7,6.97836612]
[1748946120896,3.866,2614.9,2614.7,3.15384381]
[1748946121054,3.866,2614.9,2614.7,13.15384381]
[1748946122199,3.866,2614.9,2614.6,3.82461636]
[1748946122200,7.69029645,2614.9,2614.6,8.0]
[1748946123196,0.9732,2614.7,2614.3,4.14684381]
[1748946123367,8.66378372,2614.7,2614.4,8.0]
[1748946123552,4.8392,2614.7,2614.4,8.0]
[1748946124258,4.8392,2614.7,2614.4,11.82496644]
[1748946124960,4.8392,2614.7,2614.5,6.97864003]
[1748946125229,0.9732,2614.9,2614.5,6.97864003]
[1748946125507,3.866,2614.8,2614.5,11.15384381]
[1748946125803,3.866,2614.8,2614.5,14.97866291]
[1748946127059,3.866,2614.8,2614.5,11.15384381]
[1748946127255,3.82420557,2615.0,2614.7,3.15384381]
[1748946127455,3.866,2614.9,2614.7,3.15384381]
[1748946128103,3.866,2614.8,2614.7,3.15384381]
[1748946129109,3.82420557,2615.0,2614.7,3.15384381]
[1748946129311,3.866,2614.9,2614.7,3.15384381]
[1748946130413,4.87578951,2615.1,2614.7,6.97836631]
[1748946130713,7.69012437,2615.0,2614.7,13.15384381]
[1748946130919,3.82425965,2614.9,2614.7,3.15384381]
[1748946131105,3.866,2614.8,2614.6,2.85749]
[1748946131470,3.866,2614.8,2614.6,8.0]
[1748946131827,7.69041644,2614.8,2614.5,3.15384381]
[1748946132025,3.82432498,2614.9,2614.6,8.0]
[1748946132335,3.866,2614.8,2614.6,8.0]
[1748946132872,3.866,2614.8,2614.6,11.82467266]
[1748946134120,4.87581275,2615.1,2614.6,11.82467266]
[1748946134323,4.87581275,2615.1,2614.7,6.97834478]
[1748946134478,1.0518,2615.1,2614.8,3.8243801]
[1748946134679,3.866,2615.0,2614.8,10.0]
[1748946135890,3.866,2614.9,2614.8,8.0]
[1748946141711,3.82416085,2615.0,2614.8,8.0]
[1748946141891,3.866,2614.9,2614.8,8.0]
[1748946142092,7.69023802,2614.9,2614.8,8.0]
[1748946142414,3.82462478,2614.7,2614.5,0.44705257]
[1748946142574,7.69062478,2614.7,2614.5,0.44705257]
[1748946142770,3.866,2614.7,2614.5,0.44705257]
[1748946143379,3.866,2614.7,2614.6,8.0]
[1748946145179,3.866,2614.7,2614.4,3.15384381]
[1748946145180,3.82475708,2614.6,2614.4,8.0]
[1748946145399,3.82475708,2614.6,2614.3,8.0]
[1748946145628,3.866,2614.7,2614.3,8.0]
[1748946145629,3.865,2614.5,2614.3,8.0]
[1748946145929,3.865,2614.5,2614.3,11.82508261]
[1748946146634,3.865,2614.5,2614.3,8.0]
[1748946149231,3.865,2614.5,2614.3,11.82510463]
[1748946150533,3.865,2614.5,2614.4,3.15384381]
[1748946151007,3.865,2614.5,2614.4,6.97881321]
[1748946153096,3.865,2614.5,2614.4,16.48345921]
[1748946153432,1.0553,2614.8,2614.5,11.8248231]
[1748946153632,3.865,2614.7,2614.5,11.8248231]
[1748946155138,3.865,2614.7,2614.5,8.0]
[1748946156050,3.865,2614.7,2614.5,11.82479827]
[1748946156203,3.865,2614.6,2614.5,8.0]
[1748946156402,3.865,2614.6,2614.5,11.82474213]
[1748946157310,3.865,2614.9,2614.8,11.82429916]
[1748946157634,3.865,2615.0,2614.8,6.97814297]
[1748946157844,3.865,2615.0,2614.8,3.15384381]
[1748946158420,3.865,2614.9,2614.8,3.15384381]
[1748946162751,3.865,2615.0,2614.8,3.15384381]
[1748946163847,3.865,2615.0,2614.7,11.82444838]
[1748946164649,3.865,2615.0,2614.7,8.0]
[1748946164845,3.82395377,2615.1,2614.6,3.15384381]
[1748946165152,3.865,2615.0,2614.6,3.15384381]
[1748946165364,3.865,2615.0,2614.7,3.82452502]
[1748946166010,3.865,2615.0,2614.7,3.8245006]
[1748946169864,3.865,2615.0,2614.6,6.97839722]
[1748946171161,3.865,2615.0,2614.7,3.82451446]
[1748946171352,3.865,2615.0,2614.6,6.97843178]
[1748946171541,3.865,2615.0,2614.7,3.82450577]
[1748946171742,3.865,2615.0,2614.7,10.0]
[1748946176065,3.865,2615.0,2614.7,13.82452899]
[1748946176269,3.865,2615.0,2614.7,10.0]
[1748946177971,7.68910436,2615.0,2614.7,10.0]
[1748946178182,3.865,2615.0,2614.6,6.97842891]
[1748946179066,3.865,2615.0,2614.7,10.0]
[1748946179268,3.865,2615.0,2614.8,2.3660938]